[Event "Frauenbundesliga 2021-22"]
[Site "Germany"]
[Date "2022.05.28"]
[Round "10.9"]
[White "Gaal, Zsoka"]
[Black "Hincu, Olga"]
[Result "1/2-1/2"]
[ECO "E68"]
[WhiteElo "2323"]
[BlackElo "2078"]
[Annotator "TA"]
[PlyCount "137"]
[EventDate "2021.11.26"]
[EventType "team-tourn"]
[EventCountry "GER"]
[SourceTitle "playchess.com"]
[Source "ChessBase"]
[SourceQuality "1"]
[WhiteTeam "Hamburger SK"]
[BlackTeam "Leipzig"]
[TimeControl "40/5400+30:1800+30"]

{[%evp 19,137,52,86,91,83,79,75,52,66,62,106,12,20,2,20,0,0,0,16,0,0,0,4,5,0,16,14,18,14,0,53,43,55,51,65,59,80,35,150,97,133,66,72,0,79,0,0,4,39,38,41,53,41,0,0,-37,-41,-37,0,-90,0,-3,1,0,27,-8,0,0,0,0,0,0,0,0,0,0,0,0,0,0,0,0,0,0,0,0,0,0,0,0,0,0,0,0,0,0,58,0,0,0,0,0,0,-676,-677,-685,-702,-679,-668,-664,-408,-400,0,-596,0,-357,0,-565,0,-189]} 1. d4 {[%emt 0:00:10]} Nf6 {[%emt 0:00:26]} 2. c4 {[%emt 0:00:43]} g6 {[%emt 0:02:21]} 3. Nf3 {[%emt 0:00:30]} Bg7 {[%emt 0:00:04]} 4. g3 {[%emt 0:00:16]} O-O {[%emt 0:00:34]} 5. Bg2 {[%emt 0:00:08]} d6 {[%emt 0:00:10]} 6. Nc3 {[%emt 0:00:27]} Nbd7 {[%emt 0:00:18]} 7. O-O {[%emt 0:00:28]} e5 {[%emt 0:01:59]} 8. e4 {[%emt 0:00:15]} exd4 {[%emt 0:06:21]} 9. Nxd4 {[%emt 0:00:18]} Ne5 {[%emt 0:01:34]} 10. b3 {[%emt 0:04:50]} Bg4 {[%emt 0:05:38]} 11. f3 {[%emt 0:02:51] E68: King's Indian: Fianchetto: 6...Nbd7 7 0-0 e5 8 e4.} Bd7 {[%emt 0:00:15]} 12. Bb2 {[%emt 0:03:47] [#]} Re8 $146 {[%emt 0:07:29]} ({Predecessor:} 12... Nc6 13. Nc2 Ne8 14. Na4 Ne5 15. Nc3 Nc6 16. Na4 Ne5 17. Nc3 Nc6 18. Na4 Ne5 {½-½ (18) Nilssen,E (2137)-Ananya,S (1896) New Delhi 2019}) 13. Qc2 {[%emt 0:09:18] White is better.} Qc8 {[%emt 0:06:00]} 14. Rfe1 {[%emt 0:12:17]} h5 {[%emt 0:10:51][%cal Oh5h4]} 15. h4 {[%emt 0:07:54]} (15. f4 $1 $16 {[%cal Rf4e5]} Nc6 16. Nxc6 bxc6 17. Na4) 15... c6 {[%emt 0:05:17]} 16. Rad1 {[%emt 0:02:47]} Qc7 {[%emt 0:01:12]} 17. Qf2 {[%emt 0:08:51]} Rad8 {[%emt 0:03:31]} 18. Nde2 {[%emt 0:00:32]} Be6 {[%emt 0:09:07]} 19. Kh1 {[%emt 0:06:29]} (19. Qxa7 Ra8 20. Qd4 d5) 19... a6 {[%emt 0:07:24]} 20. Nf4 {[%emt 0:02:12]} b5 {[%emt 0:01:19]} 21. Nxe6 {[%emt 0:05:35]} Rxe6 {[%emt 0:01:43]} 22. cxb5 {[%emt 0:01:33]} axb5 {[%emt 0:00:13]} 23. Qc2 {[%emt 0:04:36][%cal Oc3b5]} Qb6 {[%emt 0:05:47]} 24. a4 {[%emt 0:03:36]} b4 {[%emt 0:01:42]} (24... bxa4 $11 25. Nxa4 Qb5) 25. Ne2 $14 {[%emt 0:00:25]} Ree8 {[%emt 0:04:05]} 26. Nf4 {[%emt 0:01:59]} Bh6 {[%emt 0:02:19]} 27. Re2 {[%emt 0:03:53]} Kh7 {[%emt 0:05:14]} 28. Red2 {[%emt 0:02:26]} c5 {[%emt 0:03:57]} (28... d5 $14) 29. Ba1 {[%emt 0:08:20]} (29. Bf1 $142) 29... Bg7 {[%emt 0:00:43][%cal Oc5c4]} 30. Nh3 {[%emt 0:01:04]} ({Better is} 30. Bf1 $16) 30... Qc7 {[%emt 0:04:52]} 31. Nf4 {[%emt 0:04:06]} (31. Ng5+ $16 Kg8 32. Bf1) 31... Qe7 {[%emt 0:01:11]} (31... Qb6 $11) 32. Nd3 {[%emt 0:00:19]} (32. Bb2 $16) 32... Nfd7 $11 {[%emt 0:00:43]} 33. Nxe5 {[%emt 0:02:32]} Nxe5 {[%emt 0:00:02]} 34. Rd5 {[%emt 0:00:33]} Nc6 {[%emt 0:01:52]} 35. Bxg7 {[%emt 0:00:48]} Kxg7 {[%emt 0:00:02]} 36. Qb2+ {[%emt 0:00:16]} Nd4 $1 {[%emt 0:00:33]} 37. R1xd4 {[%emt 0:00:49]} cxd4 {[%emt 0:00:05]} 38. Qxd4+ {[%emt 0:00:05]} Kg8 {[%emt 0:00:57]} 39. Qxb4 {[%emt 0:00:10]} (39. Bf1 $11 {keeps the balance.}) 39... Qc7 {[%emt 0:01:10]} (39... Rb8 $17 40. Qd4 Rxb3) 40. Bf1 $132 {[%emt 0:01:31][%mdl 2048] White is not holding back} Re5 {[%emt 0:00:29]} 41. Qc4 {[%emt 0:14:06]} Qe7 {[%emt 0:09:28]} 42. Qd4 {[%emt 0:00:35]} Rxd5 {[%emt 0:00:22]} (42... g5 {with more complications.} 43. hxg5 Qxg5 44. Kh2 h4) 43. Qxd5 {[%emt 0:00:21][%mdl 4096] Endgame KQR-KQB} Qf6 {[%emt 0:00:49]} 44. Qd1 {[%emt 0:08:09]} Qe5 {[%emt 0:04:19]} 45. Kg2 {[%emt 0:00:17]} d5 {[%emt 0:01:47]} 46. Bc4 $1 {[%emt 0:00:19]} d4 {[%emt 0:02:14]} 47. Qd3 {[%emt 0:00:25]} Qa5 {[%emt 0:01:47]} 48. Kf2 {[%emt 0:02:22]} Qc3 {[%emt 0:00:55]} 49. Ke2 {[%emt 0:00:20] And now Qxc3 would win.} Qb2+ {[%emt 0:01:01]} 50. Kd1 {[%emt 0:00:43]} Qa1+ {[%emt 0:02:28]} 51. Kd2 {[%emt 0:00:36]} Kg7 {[%emt 0:02:46]} 52. f4 {[%emt 0:02:40]} Qg1 {[%emt 0:01:00]} 53. Kc2 {[%emt 0:02:05]} Qf2+ {[%emt 0:00:14]} 54. Kb1 {[%emt 0:00:29]} Rc8 {[%emt 0:00:47]} 55. Ka1 {[%emt 0:02:58]} Qe3 {[%emt 0:04:16]} 56. Kb2 $1 {[%emt 0:01:05]} Qf2+ {[%emt 0:01:39]} 57. Ka3 {[%emt 0:00:06]} Rd8 {[%emt 0:01:07]} (57... Qg1 $11) 58. Bd5 {[%emt 0:01:19]} (58. a5 $14) 58... Qg1 {[%emt 0:01:10] ...Qa1+ is the strong threat.} 59. Kb2 {[%emt 0:00:46] Inhibits Qa1+.} Qf2+ {[%emt 0:00:09]} (59... Rc8 $5 60. Bc4 Qg2+ 61. Ka3 Qg1 $11) 60. Ka3 {[%emt 0:00:23]} Qg1 {[%emt 0:00:20] aiming for ...Qa1+.} 61. Qc4 $2 {[%emt 0:00:36][%mdl 8192] [#]} (61. Ka2 $11) 61... Qa1+ $1 $19 {[%emt 0:00:34]} ({Worse is} 61... Rb8 62. Kb2 $11) 62. Kb4 {[%emt 0:00:01]} Rb8+ {[%emt 0:00:28]} 63. Ka5 {[%emt 0:00:34]} Qc3+ {[%emt 0:01:28]} 64. b4 {[%emt 0:00:08] [#]} Ra8+ $3 {[%emt 0:00:38][%mdl 512]} 65. Kb5 {[%emt 0:00:30]} Rb8+ {[%emt 0:00:02]} (65... Rc8 $142 66. Qxc3 Rxc3) 66. Ka5 $1 {[%emt 0:00:32] Hoping for Qxc3.} Ra8+ {[%emt 0:01:13]} 67. Kb5 {[%emt 0:00:02]} Rb8+ {[%emt 0:00:22]} (67... Rc8 $142 68. Qxc3 Rxc3) 68. Ka5 $1 {[%emt 0:00:19] [#] Black must now prevent Qxc3.} Ra8+ $2 {[%emt 0:00:46]} 69. Kb5 {[%emt 0:00:15] Weighted Error Value: White=0.18 (very precise) /Black=0.18 (very precise)} 1/2-1/2

[Event "Frauenbundesliga 2021-22"]
[Site "Germany"]
[Date "2022.05.28"]
[Round "10.10"]
[White "Schulz, Petra"]
[Black "Roebers, Eline"]
[Result "0-1"]
[ECO "B51"]
[WhiteElo "1996"]
[BlackElo "2369"]
[Annotator "TA"]
[PlyCount "76"]
[EventDate "2021.11.26"]
[EventType "team-tourn"]
[EventCountry "GER"]
[SourceTitle "playchess.com"]
[Source "ChessBase"]
[SourceQuality "1"]
[WhiteTeam "Leipzig"]
[BlackTeam "Hamburger SK"]
[TimeControl "40/5400+30:1800+30"]

{[%evp 9,76,27,41,41,52,32,27,34,31,33,28,37,24,23,27,18,37,14,17,-34,0,0,0,0,0,0,0,0,0,-51,-21,-40,-14,-41,-33,-72,0,-75,-48,-29,0,-106,-70,-51,-38,-276,-89,-97,-61,-194,-205,-440,-475,-455,-468,-1078,-1185,-1243,-1222,-3022,-5028,-2511,-2930,-3001,-2625,-29988,-29989,-29988,-29989]} 1. e4 {[%emt 0:00:03]} c5 {[%emt 0:00:03]} 2. Nf3 {[%emt 0:00:16]} d6 {[%emt 0:00:03]} 3. Bb5+ {[%emt 0:00:31]} Nd7 {[%emt 0:00:05]} 4. O-O {[%emt 0:00:34]} Ngf6 {[%emt 0:01:13]} 5. Re1 {[%emt 0:00:27]} g6 {[%emt 0:01:43]} 6. c3 {[%emt 0:01:03] B51: Sicilian: Moscow Variation (3 Bb5+) without 3...Bd7.} Bg7 {[%emt 0:07:31]} 7. d4 {[%emt 0:00:19]} cxd4 {[%emt 0:08:04]} 8. cxd4 {[%emt 0:00:16] White has an edge.} ({But not} 8. Qxd4 O-O $11) ({Much worse is} 8. Nxd4 a6 9. Bf1 O-O $11) 8... O-O {[%emt 0:00:04]} 9. Nc3 {[%emt 0:08:18]} a6 {[%emt 0:00:15]} 10. Bd3 {[%emt 0:01:42]} b5 {[%emt 0:01:37]} 11. a3 {[%emt 0:00:45]} Bb7 {[%emt 0:01:42]} 12. h3 {[%emt 0:00:32]} Rc8 {[%emt 0:13:18]} 13. Be3 {[%emt 0:15:29]} Nb6 {[%emt 0:02:51]} 14. Qd2 {[%emt 0:01:00]} (14. Bg5 $11) 14... Nc4 {[%emt 0:08:12]} (14... d5 $5 {[%cal Rd5e4]} 15. e5 Ne4 16. Bxe4 dxe4 $15) 15. Bxc4 {[%emt 0:00:07]} Rxc4 {[%emt 0:00:04]} 16. Bh6 {[%emt 0:00:14]} Qb6 {[%emt 0:06:23]} 17. Bxg7 {[%emt 0:00:24]} Kxg7 {[%emt 0:00:04]} 18. b3 {[%emt 0:09:29]} Rc7 {[%emt 0:02:56] [#] White must now prevent ...Rfc8.} 19. e5 $146 {[%emt 0:00:35]} (19. d5 $11) ({Predecessor:} 19. Rac1 Rfc8 20. d5 Qa5 21. Ne2 Qxa3 22. b4 Rxc1 23. Rxc1 Rxc1+ 24. Nxc1 Nxe4 25. Qd4+ {0-1 (39) Burdot,C (1094)-Korenova,S (1612) Prague 2016}) 19... Nd5 {[%emt 0:01:11]} 20. Ne4 {[%emt 0:03:55]} b4 {[%emt 0:07:47]} 21. exd6 {[%emt 0:03:05]} exd6 {[%emt 0:00:09]} 22. a4 {[%emt 0:20:00]} Nc3 {[%emt 0:10:03]} (22... Re8 $17) 23. a5 {[%emt 0:02:31]} (23. d5 $1 $11 {keeps the balance.}) 23... Qc6 $36 {[%emt 0:01:04][%mdl 2048] Black has good play.} 24. Ng3 {[%emt 0:02:24]} Qd5 {[%emt 0:02:00] Inhibits Nf5+.} 25. Qf4 {[%emt 0:03:07]} (25. Re5 $1 $11 dxe5 26. Nh5+ gxh5 27. Qg5+ Kh8 28. Qf6+ Kg8 29. Qg5+ Kh8 30. Qf6+ Kg8 31. Qg5+ Kh8) 25... f5 {[%emt 0:09:14]} 26. Nf1 {[%emt 0:08:48]} Ne4 {[%emt 0:01:44]} 27. Reb1 $2 {[%emt 0:08:43] [#]} ({Better is} 27. Ne3 $15 Qxb3 28. Reb1) 27... h6 $2 {[%emt 0:01:23]} (27... g5 $1 $19 {[%cal Rg5f4] has better winning chances.} 28. Qh2 f4) 28. Ne3 {[%emt 0:00:29]} Qe6 {[%emt 0:03:04] Threatens to win with ...g5. Black is more active.} 29. h4 {[%emt 0:04:53] [#] Against g5} (29. d5 $1 $15 Qf6 30. Re1) 29... Qf6 $1 $19 {[%emt 0:00:46] And now ...g5 would win.} 30. Nc4 $2 {[%emt 0:01:45]} (30. Rc1 Rc3 31. Rxc3 bxc3 32. Ne1) 30... g5 {[%emt 0:00:27]} 31. hxg5 {[%emt 0:01:39]} hxg5 {[%emt 0:00:06]} 32. Qe3 {[%emt 0:00:10]} (32. Nxg5 $142 Qxg5 33. Qxg5+ Nxg5 34. Ra4) 32... f4 {[%emt 0:00:30]} 33. Qd3 {[%emt 0:02:28]} Rh8 {[%emt 0:01:47]} 34. Ne1 {[%emt 0:00:35] [#]} Rh1+ $3 {[%emt 0:00:47][%mdl 512]} 35. Kxh1 {[%emt 0:00:50]} Nxf2+ {[%emt 0:00:05]} 36. Kg1 {[%emt 0:00:22]} Nxd3 {[%emt 0:00:04]} 37. Nxd3 {[%emt 0:00:08]} Qxd4+ {[%emt 0:00:04]} 38. Nf2 {[%emt 0:00:32]} Qd5 {[%emt 0:00:06] Weighted Error Value: White=0.81/Black=0.15 (very precise)} 0-1

[Event "Frauenbundesliga 2021-22"]
[Site "Germany"]
[Date "2022.05.28"]
[Round "10.11"]
[White "Fuchs, Judith"]
[Black "Germann, Heike"]
[Result "1-0"]
[ECO "B07"]
[WhiteElo "2229"]
[BlackElo "1997"]
[Annotator "TA"]
[PlyCount "73"]
[EventDate "2021.11.26"]
[EventType "team-tourn"]
[EventCountry "GER"]
[SourceTitle "playchess.com"]
[Source "ChessBase"]
[SourceQuality "1"]
[WhiteTeam "Hamburger SK"]
[BlackTeam "Leipzig"]
[TimeControl "40/5400+30:1800+30"]

{[%evp 19,73,43,40,41,50,0,0,-31,-17,-42,0,-50,6,1,9,-4,-8,-4,0,-25,-16,-28,14,22,14,19,31,16,60,64,150,148,220,185,215,214,198,204,287,282,368,353,349,343,487,482,616,585,572,522,764,758,695,634,760,716]} 1. d4 {[%emt 0:00:03]} Nf6 {[%emt 0:00:02]} 2. Bf4 {[%emt 0:00:07]} g6 {[%emt 0:00:02]} 3. Nc3 {[%emt 0:00:05]} Bg7 {[%emt 0:00:06]} 4. e4 {[%emt 0:00:16]} d6 {[%emt 0:00:07]} 5. Qd2 {[%emt 0:00:18]} Nbd7 {[%emt 0:02:59]} 6. O-O-O {[%emt 0:04:49]} O-O {[%emt 0:00:45]} 7. Bh6 {[%emt 0:00:58]} e5 {[%emt 0:05:27]} 8. Bxg7 {[%emt 0:08:22]} Kxg7 {[%emt 0:00:03]} 9. h4 {[%emt 0:00:33]} (9. f3) 9... h5 {[%emt 0:06:06]} 10. f3 {[%emt 0:03:30]} c6 {[%emt 0:03:57]} 11. Nh3 {[%emt 0:07:35] B07: Pirc Defence: Miscellaneous Systems.} b5 {[%emt 0:04:20] [#]} 12. dxe5 $146 {[%emt 0:04:00]} (12. Nf2) ({White should try} 12. Ne2 $14) ({Predecessor:} 12. Ng5 Qa5 13. Kb1 b4 14. Ne2 Ba6 15. g4 Rh8 16. gxh5 Nxh5 17. dxe5 Bxe2 18. Bxe2 Qxe5 {1-0 (56) Stefansson,H (2518)-Rasik,V (2424) Marianske Lazne 2022}) 12... dxe5 $11 {[%emt 0:01:14]} 13. Qd6 {[%emt 0:05:24] The position is equal.} Qb6 {[%emt 0:07:09]} 14. Kb1 {[%emt 0:05:16]} (14. Ng5) (14. a4 {is more complex.} a6 15. Ng5 Qc5 16. Qxc5 Nxc5 17. Rd6) 14... Qc5 {[%emt 0:16:20]} 15. Be2 {[%emt 0:04:55]} (15. a4 $11) 15... Qxd6 {[%emt 0:23:12]} (15... Ne8 $15 16. Qd2 Nb6) 16. Rxd6 {[%emt 0:00:08]} Bb7 {[%emt 0:00:17]} 17. Ng5 {[%emt 0:11:04]} Nb6 {[%emt 0:05:39]} 18. Kc1 {[%emt 0:04:59]} Rfd8 {[%emt 0:02:29]} 19. Rhd1 {[%emt 0:00:21]} Rxd6 {[%emt 0:02:41]} 20. Rxd6 {[%emt 0:00:02]} Rc8 {[%emt 0:05:26]} (20... Ne8 $5 {[%cal Re8d6]} 21. Rd2 Bc8 $11) 21. b3 {[%emt 0:08:00]} Ne8 {[%emt 0:03:26]} 22. Rd2 {[%emt 0:01:26]} Rc7 {[%emt 0:01:06]} 23. a4 {[%emt 0:02:38]} b4 {[%emt 0:01:48]} 24. Nd1 {[%emt 0:01:04]} a5 {[%emt 0:00:26]} (24... Kf8 $14) 25. Nb2 {[%emt 0:01:24] Nc4 is the strong threat. White is more active.} Rd7 {[%emt 0:04:08] [#]} (25... Bc8 $16 {is a better defense.}) 26. Rxd7 $1 $18 {[%emt 0:07:03]} Nxd7 {[%emt 0:00:02]} 27. Nc4 {[%emt 0:00:12] Inhibits Nb6.} Ba6 {[%emt 0:00:04]} 28. Nxe5 {[%emt 0:00:46]} Bxe2 {[%emt 0:01:51]} (28... Nxe5 {was called for.} 29. Bxa6 Nc7) 29. Nxd7 {[%emt 0:00:02][%mdl 4096] Endgame KBN-KNN} Nc7 {[%emt 0:00:52]} 30. Nc5 {[%emt 0:02:28]} Bf1 {[%emt 0:00:36]} 31. g3 {[%emt 0:00:55]} Bg2 {[%emt 0:00:09]} (31... Be2 $142 32. e5 Ba6) 32. Kd2 {[%emt 0:01:40] White is clearly winning.} f6 {[%emt 0:00:27]} 33. Nge6+ {[%emt 0:00:04]} Nxe6 {[%emt 0:00:09]} 34. Nxe6+ {[%emt 0:00:04]} Kg8 {[%emt 0:00:52]} 35. Ke3 {[%emt 0:01:06]} Bh3 {[%emt 0:00:46]} 36. Nd8 {[%emt 0:01:09]} Bd7 {[%emt 0:00:36]} 37. Nb7 {[%emt 0:00:05] Weighted Error Value: White=0.13 (very precise) /Black=0.38} 1-0

[Event "Frauenbundesliga 2021-22"]
[Site "Germany"]
[Date "2022.05.28"]
[Round "10.12"]
[White "Daemering, Katrin"]
[Black "Wulf, Constanze"]
[Result "1-0"]
[ECO "B99"]
[WhiteElo "1966"]
[BlackElo "1842"]
[Annotator "TA"]
[PlyCount "51"]
[EventDate "2021.11.26"]
[EventType "team-tourn"]
[EventCountry "GER"]
[SourceTitle "playchess.com"]
[Source "ChessBase"]
[SourceQuality "1"]
[WhiteTeam "Leipzig"]
[BlackTeam "Hamburger SK"]
[TimeControl "40/5400+30:1800+30"]

{[%evp 17,51,26,46,-19,-19,-39,0,-20,-14,-47,-38,-53,-33,-57,-11,-19,-22,-70,8,-79,55,4,45,56,385,384,341,367,591,379,1975,115,277,257,29994,29970]} 1. e4 {[%emt 0:00:03]} c5 {[%emt 0:00:05]} 2. Nf3 {[%emt 0:00:05]} d6 {[%emt 0:00:07]} 3. d4 {[%emt 0:00:05]} cxd4 {[%emt 0:00:08]} 4. Nxd4 {[%emt 0:00:05]} Nf6 {[%emt 0:00:09]} 5. Nc3 {[%emt 0:00:04]} a6 {[%emt 0:00:06]} 6. Bg5 {[%emt 0:00:17]} e6 {[%emt 0:00:12]} 7. f4 {[%emt 0:00:37]} Be7 {[%emt 0:00:25]} 8. Qf3 {[%emt 0:00:15]} Qc7 {[%emt 0:00:52]} 9. O-O-O {[%emt 0:00:20]} Nbd7 {[%emt 0:01:16]} 10. Kb1 {[%emt 0:02:54] B99: Sicilian Najdorf: 6 Bg5 e6 7 f4 Be7 8 Qf3 Qc7 9 0-0-0 Nbd7.} (10. g4 $14) 10... b5 $11 {[%emt 0:03:34][%cal Bb7b5,Bb5b4][%mdl 32]} 11. Bd3 {[%emt 0:10:34]} b4 {[%emt 0:13:33]} 12. Nce2 {[%emt 0:02:54] The position is equal.} Bb7 {[%emt 0:08:24]} 13. Rhe1 {[%emt 0:08:56]} Nc5 {[%emt 0:14:42][%cal Rc5e4]} 14. Bxf6 {[%emt 0:05:03]} Bxf6 {[%emt 0:00:33]} 15. g4 {[%emt 0:03:29]} O-O {[%emt 0:07:08]} (15... h6 $15) 16. g5 {[%emt 0:04:25]} Be7 {[%emt 0:00:18] [#]} 17. Rg1 $146 {[%emt 0:20:33]} (17. Qg4 $11 {feels stronger.}) ({Predecessor:} 17. Ng3 a5 18. f5 Bxg5 19. Qg4 Bf6 20. Nb5 Qb6 21. Nh5 Be5 22. Bc4 Nxe4 23. Rxe4 exf5 24. Qxf5 {0-1 (42) Larkin,K (1838)-Garcia Casillas,C (1808) Quebec 2017}) 17... Rfd8 {[%emt 0:17:48]} ({Black should try} 17... Rac8 $15) 18. Rg3 {[%emt 0:04:53]} (18. h4 $11) 18... e5 {[%emt 0:25:52]} (18... g6 $17) 19. Nf5 $14 {[%emt 0:05:01] [#] aiming for fxe5.} d5 {[%emt 0:01:16]} 20. exd5 {[%emt 0:15:15]} (20. Nxe7+ Qxe7 21. exd5 e4 $17) 20... Bxd5 $2 {[%emt 0:01:08][%mdl 8192]} ({Better is} 20... Nxd3 $14 21. Rxd3 (21. Nxe7+ Qxe7 22. Rxd3 e4 $15) 21... Rac8) 21. Nxe7+ $18 {[%emt 0:03:57]} Qxe7 {[%emt 0:00:03]} 22. Bxh7+ $1 {[%emt 0:01:34]} Kxh7 $2 {[%emt 0:02:57] [#]} (22... Kf8 {was worth a try.} 23. Rxd5 Rxd5) 23. Rxd5 {[%emt 0:03:27]} Rxd5 $2 {[%emt 0:00:46]} (23... g6 24. Rxe5 (24. fxe5 Rxd5 25. Qxd5 Rd8 $14) 24... Qd6) 24. Qxd5 $2 {[%emt 0:00:07]} (24. Rh3+ $18 {and White stays clearly on top.} Kg8 25. Qh5 (25. Qxd5 Rd8 $11)) 24... Re8 $2 {[%emt 0:00:35]} (24... Rd8 $16 25. g6+ (25. Qxe5 Qxe5 26. fxe5 Rd1+ 27. Nc1 Ne4 $11) 25... Kg8 26. gxf7+ (26. Qxe5 Qxe5 27. gxf7+ Kf8 $17) 26... Kf8) 25. g6+ {[%emt 0:03:22][%cal Bg5g6,Bg6f7][%mdl 32]} Kh8 $2 {[%emt 0:00:32]} (25... Kg8 $18 26. fxe5 Ne6) 26. gxf7 {[%emt 0:01:00] Weighted Error Value: White=0.90/Black=1.18} 1-0